[Event "Early-Titled-Tuesday-Blitz-May-07-2024"]
[Site "Chess.com"]
[Date "2024.05.07"]
[Round "11"]
[White "Sjakkerntobi"]
[Black "NigiriSushies"]
[Result "0-1"]
[WhiteElo "2538"]
[BlackElo "2435"]
[TimeControl "180+1"]
[EndTime "10:13:32 PDT"]
[Termination "NigiriSushies won by checkmate"]

1. e4 {[%clk 0:03:00.9]} 1... c5 {[%clk 0:03:00]} 2. Nf3 {[%clk 0:03:00.8]} 2...
d6 {[%clk 0:03:00.5]} 3. Bb5+ {[%clk 0:03:00.6]} 3... Nd7 {[%clk 0:03:00.3]} 4.
Ba4 {[%clk 0:03:01]} 4... Nf6 {[%clk 0:02:59.9]} 5. O-O {[%clk 0:03:00.4]} 5...
e6 {[%clk 0:02:48]} 6. Re1 {[%clk 0:02:57.9]} 6... Be7 {[%clk 0:02:45.9]} 7. c3
{[%clk 0:02:51.7]} 7... a6 {[%clk 0:02:37.7]} 8. d4 {[%clk 0:02:51.4]} 8... b5
{[%clk 0:02:38]} 9. Bc2 {[%clk 0:02:51.5]} 9... Bb7 {[%clk 0:02:38.4]} 10. a4
{[%clk 0:02:48.2]} 10... O-O {[%clk 0:02:37.6]} 11. Bf4 {[%clk 0:02:30.5]} 11...
Re8 {[%clk 0:02:29.2]} 12. Nbd2 {[%clk 0:02:29.1]} 12... b4 {[%clk 0:02:08.2]}
13. Nf1 {[%clk 0:01:58.1]} 13... Qa5 {[%clk 0:01:47.2]} 14. c4 {[%clk
0:00:42.4]} 14... cxd4 {[%clk 0:01:42.3]} 15. Nxd4 {[%clk 0:00:43.3]} 15... Nc5
{[%clk 0:01:41.9]} 16. e5 {[%clk 0:00:34]} 16... dxe5 {[%clk 0:01:38.5]} 17.
Bxe5 {[%clk 0:00:34.4]} 17... Red8 {[%clk 0:01:36.7]} 18. Qc1 {[%clk 0:00:20.6]}
18... b3 {[%clk 0:01:17.1]} 19. Bb1 {[%clk 0:00:18.2]} 19... Ng4 {[%clk
0:01:08.5]} 20. Nf3 {[%clk 0:00:06.8]} 20... Nd3 {[%clk 0:00:50.1]} 21. Bxd3
{[%clk 0:00:06.4]} 21... Rxd3 {[%clk 0:00:49.8]} 22. Bc3 {[%clk 0:00:06.6]}
22... Qb6 {[%clk 0:00:42.2]} 23. Ne5 {[%clk 0:00:01.1]} 23... Qxf2+ {[%clk
0:00:39.9]} 24. Kh1 {[%clk 0:00:01.2]} 24... Qxg2# {[%clk 0:00:40.8]} 0-1

[Event "Early-Titled-Tuesday-Blitz-May-07-2024"]
[Site "Chess.com"]
[Date "2024.05.07"]
[Round "11"]
[White "JiiHart"]
[Black "sudtirolese06"]
[Result "1/2-1/2"]
[WhiteElo "2195"]
[BlackElo "2425"]
[TimeControl "180+1"]
[EndTime "10:13:34 PDT"]
[Termination "Game drawn by repetition"]

1. e4 {[%clk 0:03:00.9]} 1... e5 {[%clk 0:02:57.6]} 2. Nf3 {[%clk 0:03:00.3]}
2... Nf6 {[%clk 0:02:58.3]} 3. d4 {[%clk 0:02:56.6]} 3... Nxe4 {[%clk
0:02:50.9]} 4. Bd3 {[%clk 0:02:55.2]} 4... d5 {[%clk 0:02:47.6]} 5. Nxe5 {[%clk
0:02:54.9]} 5... Nd7 {[%clk 0:02:41.4]} 6. O-O {[%clk 0:02:51]} 6... Nxe5 {[%clk
0:02:38.7]} 7. dxe5 {[%clk 0:02:50.7]} 7... Bc5 {[%clk 0:02:39.6]} 8. Bxe4
{[%clk 0:02:49.4]} 8... dxe4 {[%clk 0:02:40.5]} 9. Qxd8+ {[%clk 0:02:49.2]} 9...
Kxd8 {[%clk 0:02:41.4]} 10. Nc3 {[%clk 0:02:48.1]} 10... Bf5 {[%clk 0:02:38.6]}
11. Bg5+ {[%clk 0:02:46.3]} 11... Ke8 {[%clk 0:02:38.3]} 12. Rae1 {[%clk
0:02:45.7]} 12... h6 {[%clk 0:02:36.6]} 13. Bd2 {[%clk 0:02:14.8]} 13... Rd8
{[%clk 0:02:31.6]} 14. Re2 {[%clk 0:01:41.7]} 14... Bg4 {[%clk 0:02:07.5]} 15.
Rxe4 {[%clk 0:01:38]} 15... Rxd2 {[%clk 0:02:07.4]} 16. Rxg4 {[%clk 0:01:38]}
16... Rxc2 {[%clk 0:02:07.8]} 17. Rxg7 {[%clk 0:01:34.8]} 17... c6 {[%clk
0:01:57.6]} 18. Ne4 {[%clk 0:01:28.4]} 18... Bd4 {[%clk 0:01:54.4]} 19. Nd6+
{[%clk 0:01:24]} 19... Kd7 {[%clk 0:01:48.1]} 20. Nxf7 {[%clk 0:01:19.2]} 20...
Rb8 {[%clk 0:01:35.9]} 21. Nxh6+ {[%clk 0:01:05.3]} 21... Ke6 {[%clk 0:01:35.5]}
22. Ng4 {[%clk 0:00:55.4]} 22... Rxb2 {[%clk 0:01:32.2]} 23. Kh1 {[%clk
0:00:55]} 23... c5 {[%clk 0:01:32.2]} 24. f4 {[%clk 0:00:55.1]} 24... c4 {[%clk
0:01:25.2]} 25. f5+ {[%clk 0:00:54.6]} 25... Kd5 {[%clk 0:01:25.1]} 26. Rd7+
{[%clk 0:00:52.2]} 26... Kc5 {[%clk 0:01:24.7]} 27. Rd1 {[%clk 0:00:41.5]} 27...
c3 {[%clk 0:00:59.8]} 28. R7xd4 {[%clk 0:00:32.9]} 28... c2 {[%clk 0:00:59.7]}
29. Rd5+ {[%clk 0:00:31]} 29... Kb4 {[%clk 0:00:49.1]} 30. R1d4+ {[%clk
0:00:19.9]} 30... Kc3 {[%clk 0:00:42.9]} 31. Rd3+ {[%clk 0:00:19.6]} 31... Kb4
{[%clk 0:00:41.6]} 32. R3d4+ {[%clk 0:00:20.1]} 32... Kc3 {[%clk 0:00:41.9]} 33.
Rd3+ {[%clk 0:00:20.3]} 33... Kb4 {[%clk 0:00:42.4]} 34. R3d4+ {[%clk
0:00:20.9]} 1/2-1/2

[Event "Early-Titled-Tuesday-Blitz-May-07-2024"]
[Site "Chess.com"]
[Date "2024.05.07"]
[Round "11"]
[White "scarabee43"]
[Black "TigrVShlyape"]
[Result "0-1"]
[WhiteElo "2816"]
[BlackElo "2949"]
[TimeControl "180+1"]
[EndTime "10:13:37 PDT"]
[Termination "TigrVShlyape won by resignation"]

1. d4 {[%clk 0:03:00.9]} 1... f5 {[%clk 0:02:45.4]} 2. c4 {[%clk 0:02:57.6]}
2... Nf6 {[%clk 0:02:44.7]} 3. Nc3 {[%clk 0:02:57.9]} 3... e6 {[%clk 0:02:44.7]}
4. Bg5 {[%clk 0:02:48.3]} 4... h6 {[%clk 0:02:42.9]} 5. Bxf6 {[%clk 0:02:48.1]}
5... Qxf6 {[%clk 0:02:43.1]} 6. Nf3 {[%clk 0:02:46.2]} 6... g5 {[%clk
0:02:37.8]} 7. e4 {[%clk 0:02:43.1]} 7... fxe4 {[%clk 0:02:34.8]} 8. Nxe4 {[%clk
0:02:42.3]} 8... Bb4+ {[%clk 0:02:34.9]} 9. Nc3 {[%clk 0:02:33.6]} 9... Nc6
{[%clk 0:02:32.9]} 10. a3 {[%clk 0:02:29.7]} 10... Bxc3+ {[%clk 0:02:32.5]} 11.
bxc3 {[%clk 0:02:30.3]} 11... Rf8 {[%clk 0:02:05.5]} 12. h3 {[%clk 0:02:21.5]}
12... b6 {[%clk 0:02:03.5]} 13. Bd3 {[%clk 0:02:21.2]} 13... Bb7 {[%clk
0:02:02.9]} 14. Be4 {[%clk 0:02:19.9]} 14... O-O-O {[%clk 0:02:01.9]} 15. O-O
{[%clk 0:02:17.3]} 15... h5 {[%clk 0:01:58.6]} 16. Nd2 {[%clk 0:02:08.3]} 16...
g4 {[%clk 0:01:56.5]} 17. hxg4 {[%clk 0:02:07.4]} 17... hxg4 {[%clk 0:01:56.3]}
18. Qxg4 {[%clk 0:02:08]} 18... Rh8 {[%clk 0:01:41.1]} 19. Rfd1 {[%clk
0:01:16.4]} 19... Rdg8 {[%clk 0:01:36.7]} 20. Qf3 {[%clk 0:01:16.1]} 20... Qh6
{[%clk 0:01:34.9]} 21. Kf1 {[%clk 0:01:13.6]} 21... Rf8 {[%clk 0:01:16.1]} 22.
Qg3 {[%clk 0:01:05]} 22... Rhg8 {[%clk 0:01:15.2]} 23. Qh3 {[%clk 0:01:04.8]}
23... Qf4 {[%clk 0:01:08.4]} 24. Bf3 {[%clk 0:01:01.3]} 24... Kb8 {[%clk
0:00:53.7]} 25. Ra2 {[%clk 0:00:53.8]} 25... Na5 {[%clk 0:00:53]} 26. c5 {[%clk
0:00:47.4]} 26... Ba6+ {[%clk 0:00:45.9]} 27. Kg1 {[%clk 0:00:39.4]} 27... Be2
{[%clk 0:00:44.9]} 28. cxb6 {[%clk 0:00:16.4]} 28... axb6 {[%clk 0:00:43.4]} 29.
Ne4 {[%clk 0:00:05.8]} 29... Bxf3 {[%clk 0:00:40.6]} 0-1

[Event "Early-Titled-Tuesday-Blitz-May-07-2024"]
[Site "Chess.com"]
[Date "2024.05.07"]
[Round "11"]
[White "Gareth-Bale11"]
[Black "GlavkonVVS"]
[Result "0-1"]
[WhiteElo "2891"]
[BlackElo "2701"]
[TimeControl "180+1"]
[EndTime "10:13:41 PDT"]
[Termination "GlavkonVVS won by resignation"]

1. e4 {[%clk 0:03:00.9]} 1... Nf6 {[%clk 0:03:00]} 2. Nc3 {[%clk 0:02:59.3]}
2... d5 {[%clk 0:02:59.9]} 3. exd5 {[%clk 0:03:00.1]} 3... Nxd5 {[%clk
0:03:00.4]} 4. Bc4 {[%clk 0:02:59.5]} 4... Nb6 {[%clk 0:03:00.9]} 5. Bb3 {[%clk
0:02:59]} 5... c5 {[%clk 0:03:01.4]} 6. d3 {[%clk 0:02:55.8]} 6... Nc6 {[%clk
0:03:01.3]} 7. Qf3 {[%clk 0:02:52.3]} 7... e6 {[%clk 0:02:58.8]} 8. Nge2 {[%clk
0:02:52.7]} 8... Be7 {[%clk 0:02:58.3]} 9. a4 {[%clk 0:02:51.3]} 9... a5 {[%clk
0:02:57.5]} 10. O-O {[%clk 0:02:50.2]} 10... O-O {[%clk 0:02:57.2]} 11. Re1
{[%clk 0:02:45.3]} 11... Kh8 {[%clk 0:02:57]} 12. h3 {[%clk 0:02:43]} 12... e5
{[%clk 0:02:55]} 13. Nd5 {[%clk 0:02:26.5]} 13... Nxd5 {[%clk 0:02:45.2]} 14.
Bxd5 {[%clk 0:02:27.4]} 14... Nb4 {[%clk 0:02:37]} 15. Bb3 {[%clk 0:02:26.5]}
15... Be6 {[%clk 0:02:27.5]} 16. Bxe6 {[%clk 0:00:54.8]} 16... fxe6 {[%clk
0:02:25.8]} 17. Qxb7 {[%clk 0:00:54]} 17... Nxc2 {[%clk 0:02:25.7]} 18. Bd2
{[%clk 0:00:39.4]} 18... Nxa1 {[%clk 0:02:19]} 19. Rxa1 {[%clk 0:00:29.1]} 19...
Qxd3 {[%clk 0:02:17.7]} 20. Be3 {[%clk 0:00:21.3]} 20... Bf6 {[%clk 0:02:07.3]}
21. Nc3 {[%clk 0:00:20.6]} 21... Rfb8 {[%clk 0:02:03.5]} 22. Qc6 {[%clk
0:00:20]} 22... c4 {[%clk 0:02:02.6]} 23. Rd1 {[%clk 0:00:18.8]} 23... Qc2
{[%clk 0:02:02.1]} 24. Qxc4 {[%clk 0:00:18]} 24... Rxb2 {[%clk 0:01:52.9]} 25.
Qe4 {[%clk 0:00:09.8]} 25... Qxe4 {[%clk 0:01:50.7]} 26. Nxe4 {[%clk 0:00:10.7]}
26... Rb4 {[%clk 0:01:50.6]} 27. Nc5 {[%clk 0:00:10.8]} 27... Rc4 {[%clk
0:01:49]} 28. Rd7 {[%clk 0:00:08.1]} 28... h6 {[%clk 0:01:41.5]} 29. Rb7 {[%clk
0:00:04.5]} 29... Bg5 {[%clk 0:01:39.7]} 30. Nxe6 {[%clk 0:00:04.8]} 30... Bxe3
{[%clk 0:01:38.7]} 31. fxe3 {[%clk 0:00:05.7]} 31... Rg8 {[%clk 0:01:31.2]} 32.
g4 {[%clk 0:00:03.6]} 32... Rxa4 {[%clk 0:01:31]} 33. Ra7 {[%clk 0:00:03.7]}
33... Ra3 {[%clk 0:01:29.4]} 34. Kf2 {[%clk 0:00:03.7]} 34... a4 {[%clk
0:01:27.7]} 35. Kf3 {[%clk 0:00:02.9]} 35... Ra1 {[%clk 0:01:26.2]} 36. h4
{[%clk 0:00:03.4]} 36... a3 {[%clk 0:01:25.7]} 37. Ke4 {[%clk 0:00:03.4]} 37...
a2 {[%clk 0:01:25.2]} 38. g5 {[%clk 0:00:03.9]} 38... Kh7 {[%clk 0:01:23.5]} 39.
Ra6 {[%clk 0:00:02.5]} 39... Rb8 {[%clk 0:01:18.3]} 40. Kf5 {[%clk 0:00:01.9]}
40... Rf1+ {[%clk 0:01:17]} 41. Kxe5 {[%clk 0:00:02.1]} 41... a1=Q+ {[%clk
0:01:17.2]} 42. Rxa1 {[%clk 0:00:02.3]} 42... Rxa1 {[%clk 0:01:17.2]} 0-1

[Event "Early-Titled-Tuesday-Blitz-May-07-2024"]
[Site "Chess.com"]
[Date "2024.05.07"]
[Round "11"]
[White "DrVelja"]
[Black "GMBenjaminBok"]
[Result "1-0"]
[WhiteElo "2986"]
[BlackElo "3044"]
[TimeControl "180+1"]
[EndTime "10:13:44 PDT"]
[Termination "DrVelja won by resignation"]

1. e4 {[%clk 0:03:00.9]} 1... c5 {[%clk 0:02:59.8]} 2. Nf3 {[%clk 0:03:01]} 2...
d6 {[%clk 0:03:00.5]} 3. d4 {[%clk 0:03:00.9]} 3... cxd4 {[%clk 0:03:01.4]} 4.
Nxd4 {[%clk 0:03:01.8]} 4... Nf6 {[%clk 0:03:01.8]} 5. Nc3 {[%clk 0:03:02.5]}
5... a6 {[%clk 0:03:02.2]} 6. Be3 {[%clk 0:03:03.2]} 6... e5 {[%clk 0:03:02.6]}
7. Nb3 {[%clk 0:03:03.2]} 7... Be6 {[%clk 0:03:02.9]} 8. f3 {[%clk 0:03:03.5]}
8... Be7 {[%clk 0:03:03.6]} 9. Qd2 {[%clk 0:03:03.6]} 9... O-O {[%clk
0:03:04.3]} 10. O-O-O {[%clk 0:03:03]} 10... Nbd7 {[%clk 0:03:05]} 11. g4 {[%clk
0:03:02.9]} 11... b5 {[%clk 0:03:05.6]} 12. g5 {[%clk 0:03:02.7]} 12... Nh5
{[%clk 0:03:06.2]} 13. Kb1 {[%clk 0:03:02.1]} 13... Nb6 {[%clk 0:03:03.8]} 14.
Na5 {[%clk 0:03:01.7]} 14... Rc8 {[%clk 0:03:01.9]} 15. Nd5 {[%clk 0:03:00.8]}
15... Nxd5 {[%clk 0:03:01.5]} 16. exd5 {[%clk 0:03:01.7]} 16... Bxd5 {[%clk
0:03:02.1]} 17. Qxd5 {[%clk 0:03:02.6]} 17... Qxa5 {[%clk 0:03:02.5]} 18. Bd3
{[%clk 0:03:03.2]} 18... g6 {[%clk 0:03:01]} 19. Be4 {[%clk 0:03:00.8]} 19...
Kh8 {[%clk 0:02:44.9]} 20. Qb7 {[%clk 0:02:36.4]} 20... Rc7 {[%clk 0:01:39.9]}
21. Bb6 {[%clk 0:02:35.4]} 21... Rxb7 {[%clk 0:01:39.9]} 22. Bxa5 {[%clk
0:02:35.7]} 22... Rbb8 {[%clk 0:01:36.1]} 23. Bc7 {[%clk 0:02:36.3]} 23... Rbc8
{[%clk 0:01:35.1]} 24. Bxd6 {[%clk 0:02:37]} 24... Bxd6 {[%clk 0:01:29.7]} 25.
Rxd6 {[%clk 0:02:37.9]} 25... f6 {[%clk 0:01:12.2]} 26. gxf6 {[%clk 0:02:20.3]}
26... Rxf6 {[%clk 0:01:02.9]} 27. Rxf6 {[%clk 0:02:00.7]} 27... Nxf6 {[%clk
0:01:03.8]} 28. Bb7 {[%clk 0:02:01.1]} 28... Rb8 {[%clk 0:00:55.1]} 29. Bxa6
{[%clk 0:02:01.5]} 29... Rb6 {[%clk 0:00:55.7]} 30. Bc8 {[%clk 0:02:00.4]} 30...
Rc6 {[%clk 0:00:49.2]} 31. Bb7 {[%clk 0:01:54.9]} 31... Rb6 {[%clk 0:00:48.1]}
32. Be4 {[%clk 0:01:51.3]} 32... Nxe4 {[%clk 0:00:43.6]} 33. fxe4 {[%clk
0:01:52.2]} 33... Rf6 {[%clk 0:00:43.5]} 34. c4 {[%clk 0:01:29.1]} 34... bxc4
{[%clk 0:00:41.4]} 35. Rc1 {[%clk 0:01:29.8]} 35... Rf2 {[%clk 0:00:17.6]} 36.
Rxc4 {[%clk 0:01:24.8]} 36... Rxh2 {[%clk 0:00:16.3]} 37. a4 {[%clk 0:01:25.5]}
37... Rf2 {[%clk 0:00:14.1]} 38. a5 {[%clk 0:01:25.7]} 38... Rf6 {[%clk
0:00:13.5]} 39. b4 {[%clk 0:01:25]} 39... h5 {[%clk 0:00:13.3]} 40. b5 {[%clk
0:01:23.9]} 40... h4 {[%clk 0:00:09.5]} 41. b6 {[%clk 0:01:24.1]} 41... Rf3
{[%clk 0:00:06.3]} 42. Kb2 {[%clk 0:01:22.8]} 42... Rf7 {[%clk 0:00:03.1]} 43.
a6 {[%clk 0:01:21.5]} 43... h3 {[%clk 0:00:02.1]} 44. b7 {[%clk 0:01:15.6]}
44... Rf8 {[%clk 0:00:01.9]} 45. Rc8 {[%clk 0:01:15.7]} 45... Kg7 {[%clk
0:00:01.1]} 46. Rxf8 {[%clk 0:01:16.2]} 1-0

[Event "Early-Titled-Tuesday-Blitz-May-07-2024"]
[Site "Chess.com"]
[Date "2024.05.07"]
[Round "11"]
[White "mishanick"]
[Black "Aygehovit1992"]
[Result "1-0"]
[WhiteElo "3042"]
[BlackElo "2869"]
[TimeControl "180+1"]
[EndTime "10:13:45 PDT"]
[Termination "mishanick won by resignation"]

1. d4 {[%clk 0:03:00.9]} 1... Nf6 {[%clk 0:03:00.1]} 2. c4 {[%clk 0:03:01.5]}
2... g6 {[%clk 0:03:00.7]} 3. Nc3 {[%clk 0:03:01.9]} 3... Bg7 {[%clk 0:03:01.4]}
4. e4 {[%clk 0:03:02.4]} 4... d6 {[%clk 0:03:01.8]} 5. Be2 {[%clk 0:03:01.9]}
5... O-O {[%clk 0:03:01]} 6. Be3 {[%clk 0:03:02.6]} 6... Na6 {[%clk 0:03:00.4]}
7. Nf3 {[%clk 0:03:02.4]} 7... e5 {[%clk 0:03:00.2]} 8. d5 {[%clk 0:03:02.3]}
8... Nh5 {[%clk 0:02:56.1]} 9. Qc2 {[%clk 0:02:42.7]} 9... Qe7 {[%clk
0:02:21.7]} 10. O-O-O {[%clk 0:02:34.6]} 10... f5 {[%clk 0:02:17.6]} 11. Kb1
{[%clk 0:02:34]} 11... Nf4 {[%clk 0:02:08.1]} 12. Bf1 {[%clk 0:02:33.6]} 12...
Nb4 {[%clk 0:02:00.2]} 13. Qb3 {[%clk 0:02:32.6]} 13... a5 {[%clk 0:01:59.9]}
14. a3 {[%clk 0:02:19.3]} 14... Na6 {[%clk 0:02:00.1]} 15. Nd2 {[%clk
0:02:19.7]} 15... Nc5 {[%clk 0:01:45.6]} 16. Qc2 {[%clk 0:02:19.6]} 16... a4
{[%clk 0:01:40.2]} 17. Bxc5 {[%clk 0:02:08.1]} 17... dxc5 {[%clk 0:01:41.1]} 18.
Nxa4 {[%clk 0:02:08.1]} 18... Rf6 {[%clk 0:01:04.4]} 19. f3 {[%clk 0:02:02.8]}
19... Rfa6 {[%clk 0:01:03.7]} 20. Nc3 {[%clk 0:02:01.7]} 20... Bd7 {[%clk
0:01:03.7]} 21. g3 {[%clk 0:01:58.5]} 21... Nh5 {[%clk 0:01:03.1]} 22. Bd3
{[%clk 0:01:59.1]} 22... f4 {[%clk 0:01:02.3]} 23. g4 {[%clk 0:01:58.4]} 23...
Nf6 {[%clk 0:01:02.8]} 24. h4 {[%clk 0:01:53.8]} 24... Ne8 {[%clk 0:01:03.2]}
25. Nb3 {[%clk 0:01:49.6]} 25... b6 {[%clk 0:01:00]} 26. g5 {[%clk 0:01:48]}
26... Nd6 {[%clk 0:00:59.2]} 27. Bf1 {[%clk 0:01:47.2]} 27... Bf8 {[%clk
0:00:41.2]} 28. Qe2 {[%clk 0:01:44.9]} 28... Qe8 {[%clk 0:00:37.5]} 29. Bh3
{[%clk 0:01:42.5]} 29... Ba4 {[%clk 0:00:28.7]} 30. Nxa4 {[%clk 0:01:39.7]}
30... Rxa4 {[%clk 0:00:29.6]} 31. Rc1 {[%clk 0:01:35.8]} 31... b5 {[%clk
0:00:27.2]} 32. Nxc5 {[%clk 0:01:29.5]} 32... Rxc4 {[%clk 0:00:26.1]} 33. Bd7
{[%clk 0:01:28]} 33... Qb8 {[%clk 0:00:20.6]} 34. Be6+ {[%clk 0:01:27]} 34...
Kg7 {[%clk 0:00:21]} 35. h5 {[%clk 0:01:26.1]} 35... Rxc1+ {[%clk 0:00:21.1]}
36. Rxc1 {[%clk 0:01:25.7]} 36... Nc4 {[%clk 0:00:21.1]} 37. hxg6 {[%clk
0:01:06.8]} 37... Bxc5 {[%clk 0:00:21.1]} 38. Qh2 {[%clk 0:01:07.5]} 38... h5
{[%clk 0:00:09]} 39. gxh6+ {[%clk 0:01:07.3]} 39... Kf8 {[%clk 0:00:06]} 40. g7+
{[%clk 0:01:07]} 40... Ke7 {[%clk 0:00:06.3]} 41. g8=Q {[%clk 0:01:06.6]} 41...
Qxg8 {[%clk 0:00:05.9]} 42. Bxg8 {[%clk 0:01:07.4]} 42... Rxg8 {[%clk
0:00:05.7]} 43. h7 {[%clk 0:01:08]} 1-0

[Event "Early-Titled-Tuesday-Blitz-May-07-2024"]
[Site "Chess.com"]
[Date "2024.05.07"]
[Round "11"]
[White "Slovineanu"]
[Black "Matsanovic"]
[Result "1-0"]
[WhiteElo "2491"]
[BlackElo "2582"]
[TimeControl "180+1"]
[EndTime "10:13:51 PDT"]
[Termination "Slovineanu won by resignation"]

1. e4 {[%clk 0:03:00.9]} 1... c5 {[%clk 0:02:59.9]} 2. Nf3 {[%clk 0:03:00.8]}
2... e6 {[%clk 0:03:00.4]} 3. d4 {[%clk 0:03:00.8]} 3... cxd4 {[%clk 0:03:01.3]}
4. Nxd4 {[%clk 0:03:01.3]} 4... a6 {[%clk 0:03:02]} 5. Nc3 {[%clk 0:03:01.8]}
5... b5 {[%clk 0:03:02.2]} 6. Be3 {[%clk 0:03:02.3]} 6... Bb7 {[%clk 0:03:02]}
7. f3 {[%clk 0:03:02.9]} 7... Nf6 {[%clk 0:02:55.9]} 8. Qd2 {[%clk 0:02:54.1]}
8... Qc7 {[%clk 0:02:50.1]} 9. O-O-O {[%clk 0:02:50.5]} 9... d5 {[%clk
0:02:49.1]} 10. e5 {[%clk 0:02:33]} 10... Nfd7 {[%clk 0:02:47.2]} 11. f4 {[%clk
0:02:32.1]} 11... Bb4 {[%clk 0:02:42.9]} 12. a3 {[%clk 0:02:27.8]} 12... Bxc3
{[%clk 0:02:41.8]} 13. Qxc3 {[%clk 0:02:28]} 13... Qxc3 {[%clk 0:02:41.4]} 14.
bxc3 {[%clk 0:02:28.5]} 14... Nc6 {[%clk 0:02:35.5]} 15. Nxc6 {[%clk 0:02:19.4]}
15... Bxc6 {[%clk 0:02:35.4]} 16. Bd4 {[%clk 0:02:19.3]} 16... h5 {[%clk
0:02:31.5]} 17. Bd3 {[%clk 0:02:14.3]} 17... g6 {[%clk 0:02:31.1]} 18. g3 {[%clk
0:02:11]} 18... O-O-O {[%clk 0:02:30.7]} 19. h3 {[%clk 0:02:10.5]} 19... Kb7
{[%clk 0:02:29.7]} 20. g4 {[%clk 0:02:10.4]} 20... hxg4 {[%clk 0:02:29.9]} 21.
hxg4 {[%clk 0:02:11]} 21... Nb6 {[%clk 0:02:30.4]} 22. f5 {[%clk 0:02:00.7]}
22... gxf5 {[%clk 0:02:30.5]} 23. gxf5 {[%clk 0:02:00.3]} 23... Nc4 {[%clk
0:02:31]} 24. Rdg1 {[%clk 0:01:01.8]} 24... Rxh1 {[%clk 0:01:48.5]} 25. Rxh1
{[%clk 0:01:01.4]} 25... Nxa3 {[%clk 0:01:49.1]} 26. Rh7 {[%clk 0:01:00.7]}
26... Rd7 {[%clk 0:01:48.8]} 27. f6 {[%clk 0:00:42.7]} 27... Rc7 {[%clk
0:01:39.7]} 28. Bc5 {[%clk 0:00:39.7]} 28... Nc4 {[%clk 0:01:39]} 29. Be7 {[%clk
0:00:26.2]} 29... Nxe5 {[%clk 0:01:36]} 30. Bd6 {[%clk 0:00:22.9]} 30... Nxd3+
{[%clk 0:01:28]} 31. cxd3 {[%clk 0:00:23.4]} 31... Be8 {[%clk 0:01:12.3]} 32.
Bxc7 {[%clk 0:00:19.9]} 32... Kxc7 {[%clk 0:01:13.2]} 33. d4 {[%clk 0:00:20.3]}
33... a5 {[%clk 0:01:09.3]} 34. Kb2 {[%clk 0:00:19.5]} 34... Kd6 {[%clk
0:01:06.9]} 35. Rh8 {[%clk 0:00:19.1]} 35... Kd7 {[%clk 0:01:05.4]} 36. Kb3
{[%clk 0:00:18.3]} 36... Kd8 {[%clk 0:01:04.7]} 37. Rg8 {[%clk 0:00:17]} 37...
Kd7 {[%clk 0:01:04.8]} 38. Rh8 {[%clk 0:00:15.2]} 38... Kd8 {[%clk 0:01:04.9]}
39. Rg8 {[%clk 0:00:15.7]} 39... Kd7 {[%clk 0:01:05.3]} 40. Rg1 {[%clk
0:00:14.6]} 40... e5 {[%clk 0:01:02]} 41. dxe5 {[%clk 0:00:12.6]} 41... Ke6
{[%clk 0:01:02.5]} 42. Ra1 {[%clk 0:00:12.8]} 42... Kxe5 {[%clk 0:00:58.9]} 43.
Re1+ {[%clk 0:00:11.5]} 1-0

[Event "Early-Titled-Tuesday-Blitz-May-07-2024"]
[Site "Chess.com"]
[Date "2024.05.07"]
[Round "11"]
[White "PonyQueen07"]
[Black "RusPakhom"]
[Result "0-1"]
[WhiteElo "2144"]
[BlackElo "2330"]
[TimeControl "180+1"]
[EndTime "10:13:51 PDT"]
[Termination "RusPakhom won on time"]

1. c4 {[%clk 0:03:00.9]} 1... Nf6 {[%clk 0:02:58.6]} 2. Nc3 {[%clk 0:03:01.1]}
2... g6 {[%clk 0:02:58.8]} 3. g3 {[%clk 0:03:01.5]} 3... Bg7 {[%clk 0:02:59]} 4.
Bg2 {[%clk 0:03:01.8]} 4... O-O {[%clk 0:02:59.5]} 5. e4 {[%clk 0:03:02]} 5...
c5 {[%clk 0:02:56.8]} 6. Nge2 {[%clk 0:03:02.6]} 6... Nc6 {[%clk 0:02:57]} 7.
O-O {[%clk 0:03:02.9]} 7... Rb8 {[%clk 0:02:49.7]} 8. d3 {[%clk 0:03:02.7]} 8...
d6 {[%clk 0:02:46.2]} 9. h3 {[%clk 0:02:56.9]} 9... a6 {[%clk 0:02:45.5]} 10. a4
{[%clk 0:02:45.3]} 10... Ne8 {[%clk 0:02:41.6]} 11. f4 {[%clk 0:02:24.3]} 11...
Nc7 {[%clk 0:02:36.9]} 12. f5 {[%clk 0:02:12.7]} 12... b5 {[%clk 0:02:34]} 13.
axb5 {[%clk 0:02:11.1]} 13... axb5 {[%clk 0:02:34.9]} 14. cxb5 {[%clk
0:02:05.1]} 14... Nxb5 {[%clk 0:02:35.8]} 15. Nd5 {[%clk 0:01:40.6]} 15... Nbd4
{[%clk 0:02:24.4]} 16. Nxd4 {[%clk 0:01:25.1]} 16... Nxd4 {[%clk 0:02:25.3]} 17.
Ra7 {[%clk 0:01:16.3]} 17... Rb7 {[%clk 0:02:18.4]} 18. Rxb7 {[%clk 0:01:12.8]}
18... Bxb7 {[%clk 0:02:19.3]} 19. Nc3 {[%clk 0:00:51.1]} 19... Qa8 {[%clk
0:02:00.1]} 20. fxg6 {[%clk 0:00:37.3]} 20... hxg6 {[%clk 0:01:58.4]} 21. Be3
{[%clk 0:00:33.3]} 21... Be5 {[%clk 0:01:47.2]} 22. Kh2 {[%clk 0:00:29.6]} 22...
f5 {[%clk 0:01:30.8]} 23. Nd5 {[%clk 0:00:20.5]} 23... Bxd5 {[%clk 0:01:27.2]}
24. exd5 {[%clk 0:00:21.4]} 24... Qb8 {[%clk 0:01:18.5]} 25. Bxd4 {[%clk
0:00:16.2]} 25... Bxd4 {[%clk 0:01:09.5]} 26. Qd2 {[%clk 0:00:07.3]} 26... Qxb2
{[%clk 0:00:56.3]} 27. Qh6 {[%clk 0:00:04.9]} 27... Rf6 {[%clk 0:00:53.8]} 28.
h4 {[%clk 0:00:02.1]} 28... Be5 {[%clk 0:00:50.7]} 29. h5 {[%clk 0:00:01.8]}
29... gxh5 {[%clk 0:00:49.2]} 30. Qxh5 {[%clk 0:00:01.8]} 30... Qd2 {[%clk
0:00:46.6]} 31. Rxf5 {[%clk 0:00:01.4]} 31... Rh6 {[%clk 0:00:46.8]} 32. Rg5+
{[%clk 0:00:02]} 32... Qxg5 {[%clk 0:00:45.2]} 0-1